[Event "FIDE WCC 2018"]
[Site "Khanty-Mansiysk"]
[Date "2018.11.04"]
[Round "1.2"]
[White "Gara, Anita"]
[Black "Lei, Tingjie"]
[Result "1/2-1/2"]
[ECO "C50"]
[WhiteElo "2370"]
[BlackElo "2457"]
[Annotator "RC"]
[PlyCount "21"]
[EventDate "2018.11.03"]
[EventType "k.o."]
[EventCountry "RUS"]
[SourceTitle "playchess.com"]
[Source "ChessBase"]
[SourceQuality "1"]
[TimeControl "40/5400+30:1800+30"]

1. e4 {[%emt 0:00:00]} e5 {[%emt 0:00:00]} 2. Nf3 {[%emt 0:00:00]} Nc6 {[%emt 0:00:00]} 3. Bc4 {[%emt 0:00:00]} Bc5 {[%emt 0:00:02]} 4. d3 {[%emt 0:02:39]} Nf6 {[%emt 0:00:50]} 5. O-O {[%emt 0:00:11]} d6 {[%emt 0:00:31]} 6. c3 {[%emt 0:00:25]} h6 {[%emt 0:01:22]} 7. Re1 {[%emt 0:03:01]} O-O {[%emt 0:01:08]} 8. h3 {[%emt 0:00:56]} a6 {[%emt 0:01:09]} 9. a4 {[%emt 0:00:06]} Re8 {[%emt 0:00:15]} 10. Nbd2 {[%emt 0:01:41]} Be6 {[%emt 0:00:41]} 11. Bxe6 {[%emt 0:13:14]} 1/2-1/2

[Event "FIDE WCC 2018"]
[Site "Khanty-Mansiysk"]
[Date "2018.11.04"]
[Round "1.2"]
[White "Kulkarni Bhakti"]
[Black "Pogonina, Natalija"]
[Result "1/2-1/2"]
[ECO "D31"]
[WhiteElo "2256"]
[BlackElo "2465"]
[Annotator "RC"]
[PlyCount "106"]
[EventDate "2018.11.03"]
[EventType "k.o."]
[EventCountry "RUS"]
[SourceTitle "playchess.com"]
[Source "ChessBase"]
[SourceQuality "1"]
[TimeControl "40/5400+30:1800+30"]

1. d4 {[%emt 0:00:00]} d5 {[%emt 0:00:00]} 2. c4 {[%emt 0:00:12]} e6 {[%emt 0:00:00]} 3. Nc3 {[%emt 0:00:23]} Be7 {[%emt 0:00:03]} 4. cxd5 {[%emt 0:00:34]} exd5 {[%emt 0:00:04]} 5. Bf4 {[%emt 0:00:16]} Nf6 {[%emt 0:01:01]} 6. e3 {[%emt 0:00:59]} Bf5 {[%emt 0:01:28]} 7. Qb3 {[%emt 0:02:04]} Nc6 {[%emt 0:00:11]} 8. g4 {[%emt 0:01:00]} Nxg4 {[%emt 0:01:25]} 9. Qxd5 {[%emt 0:00:28]} Qxd5 {[%emt 0:01:50]} 10. Nxd5 {[%emt 0:00:03]} Bb4+ {[%emt 0:00:27]} 11. Nc3 {[%emt 0:05:55]} O-O-O {[%emt 0:19:03]} 12. a3 {[%emt 0:02:19]} Bd6 {[%emt 0:10:27]} 13. Bxd6 {[%emt 0:02:50]} cxd6 {[%emt 0:00:59]} 14. Bg2 {[%emt 0:04:41]} Rhe8 {[%emt 0:07:00]} 15. Nge2 {[%emt 0:03:19]} Nf6 {[%emt 0:01:38]} 16. Ng3 {[%emt 0:07:04]} Bg6 {[%emt 0:06:53]} 17. O-O {[%emt 0:00:49]} Kb8 {[%emt 0:09:27]} 18. b4 {[%emt 0:00:59]} d5 {[%emt 0:05:29]} 19. Rac1 {[%emt 0:04:37]} Ne7 {[%emt 0:02:13]} 20. Rfd1 {[%emt 0:02:48]} Nf5 {[%emt 0:02:45]} 21. Nce2 {[%emt 0:14:45]} Nxg3 {[%emt 0:01:06]} 22. Nxg3 {[%emt 0:04:56]} Ne4 {[%emt 0:04:46]} 23. Bh3 {[%emt 0:03:53]} Re7 {[%emt 0:05:38]} 24. Nf5 {[%emt 0:03:24]} Bxf5 {[%emt 0:00:34]} 25. Bxf5 {[%emt 0:00:03]} g6 {[%emt 0:00:36]} 26. Bh3 {[%emt 0:00:23]} f5 {[%emt 0:01:24]} 27. Bg2 {[%emt 0:03:48]} Rc7 {[%emt 0:04:48]} 28. Rxc7 {[%emt 0:01:20]} Kxc7 {[%emt 0:00:04]} 29. Rc1+ {[%emt 0:01:28]} Kd6 {[%emt 0:00:23]} 30. Rc2 {[%emt 0:00:58]} Rd7 {[%emt 0:05:13]} 31. f3 {[%emt 0:14:07]} Nf6 {[%emt 0:00:28]} 32. Kf2 {[%emt 0:00:58]} Rc7 {[%emt 0:01:55]} 33. Rc5 {[%emt 0:01:24]} b6 {[%emt 0:00:28]} 34. Rxc7 {[%emt 0:00:07]} Kxc7 {[%emt 0:00:02]} 35. Bf1 {[%emt 0:00:36]} Kd6 {[%emt 0:03:21]} 36. Bd3 {[%emt 0:00:59]} Ke6 {[%emt 0:00:15]} 37. Ke2 {[%emt 0:02:18]} g5 {[%emt 0:01:46]} 38. Kd2 {[%emt 0:01:50]} h5 {[%emt 0:02:05]} 39. Ke1 {[%emt 0:02:50]} h4 {[%emt 0:00:55]} 40. Kf2 {[%emt 0:00:00]} Ne8 {[%emt 0:00:00]} 41. e4 {[%emt 0:08:26]} fxe4 {[%emt 0:06:26]} 42. fxe4 {[%emt 0:00:10]} dxe4 {[%emt 0:00:11]} 43. Bxe4 {[%emt 0:00:41]} Nd6 {[%emt 0:00:15]} 44. Bf3 {[%emt 0:03:12]} Nb5 {[%emt 0:12:36]} 45. Ke3 {[%emt 0:01:48]} Nxa3 {[%emt 0:00:14]} 46. Ke4 {[%emt 0:01:56]} Nb5 {[%emt 0:05:48]} 47. Bg4+ {[%emt 0:01:37]} Kd6 {[%emt 0:04:03]} 48. Kf5 {[%emt 0:01:02]} a5 {[%emt 0:01:34]} 49. bxa5 {[%emt 0:00:18]} bxa5 {[%emt 0:00:04]} 50. Bd1 {[%emt 0:02:06]} Nxd4+ {[%emt 0:02:17]} 51. Kxg5 {[%emt 0:00:05]} a4 {[%emt 0:01:44]} 52. Bxa4 {[%emt 0:00:13]} Nf3+ {[%emt 0:00:04]} 53. Kg4 {[%emt 0:00:07]} Nxh2+ {[%emt 0:00:05]} 1/2-1/2

[Event "FIDE WCC 2018"]
[Site "Khanty-Mansiysk"]
[Date "2018.11.10"]
[Round "3.2"]
[White "Lagno, Kateryna"]
[Black "Pogonina, Natalija"]
[Result "1/2-1/2"]
[ECO "C95"]
[WhiteElo "2556"]
[BlackElo "2465"]
[Annotator "ChessBase"]
[PlyCount "89"]
[EventDate "2018.11.03"]
[EventType "k.o."]
[EventCountry "RUS"]
[SourceTitle "playchess.com"]
[Source "ChessBase"]
[SourceQuality "1"]
[TimeControl "40/5400+30:1800+30"]

1. e4 {[%emt 0:00:00]} e5 {[%emt 0:00:00]} 2. Nf3 {[%emt 0:00:00]} Nc6 {[%emt 0:00:00]} 3. Bb5 {[%emt 0:00:00]} a6 {[%emt 0:00:00]} 4. Ba4 {[%emt 0:00:00]} Nf6 {[%emt 0:00:00]} 5. O-O {[%emt 0:00:13]} Be7 {[%emt 0:00:29]} 6. Re1 {[%emt 0:00:18]} b5 {[%emt 0:00:12]} 7. Bb3 {[%emt 0:00:05]} d6 {[%emt 0:00:06]} 8. c3 {[%emt 0:00:06]} O-O {[%emt 0:00:44]} 9. h3 {[%emt 0:00:11]} Nb8 {[%emt 0:03:41]} 10. d4 {[%emt 0:01:02]} Nbd7 {[%emt 0:00:19]} 11. Nbd2 {[%emt 0:00:18]} c5 {[%emt 0:00:22]} 12. Nf1 {[%emt 0:01:23]} Re8 {[%emt 0:03:17]} 13. Ng3 {[%emt 0:00:34]} Bf8 {[%emt 0:00:33]} 14. Be3 {[%emt 0:04:13]} Bb7 {[%emt 0:09:41]} 15. d5 {[%emt 0:00:39]} c4 {[%emt 0:01:07]} 16. Bc2 {[%emt 0:00:05]} Qc7 {[%emt 0:00:48]} 17. Qe2 {[%emt 0:02:28]} a5 {[%emt 0:12:29]} 18. b3 {[%emt 0:16:54]} Nc5 {[%emt 0:05:31]} 19. bxc4 {[%emt 0:06:39]} bxc4 {[%emt 0:01:18]} 20. Bxc5 {[%emt 0:05:10]} Qxc5 {[%emt 0:00:47]} 21. Ba4 {[%emt 0:05:19]} Red8 {[%emt 0:02:51]} 22. Rab1 {[%emt 0:05:23]} Ba6 {[%emt 0:01:10]} 23. Rb2 {[%emt 0:08:23]} Rab8 {[%emt 0:15:17]} 24. Reb1 {[%emt 0:03:16]} Qc7 {[%emt 0:00:14]} 25. Bb5 {[%emt 0:02:00]} Bxb5 {[%emt 0:03:01]} 26. Rxb5 {[%emt 0:00:11]} g6 {[%emt 0:06:12]} 27. Nd2 {[%emt 0:08:50]} Rxb5 {[%emt 0:01:11]} 28. Rxb5 {[%emt 0:00:05]} Rc8 {[%emt 0:00:30]} 29. Ngf1 {[%emt 0:00:59]} Bh6 {[%emt 0:06:39]} 30. Qd1 {[%emt 0:03:44]} Nh5 {[%emt 0:07:12]} 31. Ne3 {[%emt 0:17:14]} Bxe3 {[%emt 0:04:21]} 32. fxe3 {[%emt 0:00:03]} Qa7 {[%emt 0:06:10]} 33. Qf3 {[%emt 0:00:13]} Nf4 {[%emt 0:00:37]} 34. Kh2 {[%emt 0:00:36]} Nd3 {[%emt 0:00:13]} 35. Qf6 {[%emt 0:04:17]} a4 {[%emt 0:05:52]} 36. Rb1 {[%emt 0:04:03]} a3 {[%emt 0:02:24]} 37. Rf1 {[%emt 0:00:24]} Qd7 {[%emt 0:01:52]} 38. Nb1 {[%emt 0:01:37]} Ra8 {[%emt 0:00:26]} 39. Nd2 {[%emt 0:00:03]} Nb2 {[%emt 0:00:37]} 40. Qf2 {[%emt 0:00:00]} Qe7 {[%emt 0:00:00]} 41. Qe2 {[%emt 0:04:25]} Ra4 {[%emt 0:13:17]} 42. g4 {[%emt 0:06:43]} Kg7 {[%emt 0:01:23]} 43. Kg3 {[%emt 0:00:33]} h6 {[%emt 0:06:16]} 44. h4 {[%emt 0:00:38]} Ra5 {[%emt 0:01:35]} 45. Nxc4 {[%emt 0:12:16]} 1/2-1/2

[Event "FIDE WCC 2018"]
[Site "Khanty-Mansiysk"]
[Date "2018.11.10"]
[Round "3.2"]
[White "Muzychuk, Mariya"]
[Black "Alinasab, Mobina"]
[Result "1-0"]
[ECO "D20"]
[WhiteElo "2545"]
[BlackElo "2236"]
[Annotator "ChessBase"]
[PlyCount "83"]
[EventDate "2018.11.03"]
[EventType "k.o."]
[EventCountry "RUS"]
[SourceTitle "playchess.com"]
[Source "ChessBase"]
[SourceQuality "1"]
[TimeControl "40/5400+30:1800+30"]

1. d4 {[%emt 0:00:00]} d5 {[%emt 0:00:00]} 2. c4 {[%emt 0:00:00]} dxc4 {[%emt 0:00:31]} 3. e4 {[%emt 0:00:00]} e5 {[%emt 0:00:31]} 4. Nf3 {[%emt 0:00:41]} exd4 {[%emt 0:00:14]} 5. Bxc4 {[%emt 0:00:15]} Nc6 {[%emt 0:01:25]} 6. O-O {[%emt 0:01:17]} Be6 {[%emt 0:00:24]} 7. Bb5 {[%emt 0:01:43]} Bc5 {[%emt 0:03:49]} 8. b4 {[%emt 0:00:34]} Bb6 {[%emt 0:05:47]} 9. a4 {[%emt 0:01:40]} a6 {[%emt 0:06:08]} 10. Bxc6+ {[%emt 0:00:41]} bxc6 {[%emt 0:00:02]} 11. a5 {[%emt 0:00:05]} Ba7 {[%emt 0:00:15]} 12. Bb2 {[%emt 0:00:10]} Qd6 {[%emt 0:05:10]} 13. Na3 {[%emt 0:03:29]} Qxb4 {[%emt 0:13:17]} 14. Qc1 {[%emt 0:09:14]} Ne7 {[%emt 0:12:14]} 15. Nc2 {[%emt 0:04:22]} Qc4 {[%emt 0:10:43]} 16. Ncxd4 {[%emt 0:02:20]} c5 {[%emt 0:11:26]} 17. Nxe6 {[%emt 0:06:16]} Qxe6 {[%emt 0:00:02]} 18. Bxg7 {[%emt 0:01:32]} Rg8 {[%emt 0:00:02]} 19. Be5 {[%emt 0:00:10]} O-O-O {[%emt 0:03:58]} 20. Bg3 {[%emt 0:03:44]} Nc6 {[%emt 0:01:10]} 21. Qf4 {[%emt 0:02:36]} Rd7 {[%emt 0:00:24]} 22. h3 {[%emt 0:01:49]} f6 {[%emt 0:02:46]} 23. Rfd1 {[%emt 0:02:31]} Re7 {[%emt 0:01:06]} 24. Kh2 {[%emt 0:06:40]} Rgg7 {[%emt 0:04:29]} 25. Nh4 {[%emt 0:02:30]} Rd7 {[%emt 0:00:54]} 26. Nf5 {[%emt 0:04:07]} Rgf7 {[%emt 0:00:07]} 27. Ne3 {[%emt 0:04:58]} Rxd1 {[%emt 0:01:05]} 28. Rxd1 {[%emt 0:00:04]} Nxa5 {[%emt 0:03:25]} 29. Nd5 {[%emt 0:00:16]} Bb8 {[%emt 0:01:36]} 30. Qe3 {[%emt 0:04:14]} Ba7 {[%emt 0:02:49]} 31. Rb1 {[%emt 0:05:42]} f5 {[%emt 0:03:14]} 32. Qc3 {[%emt 0:02:15]} Nc6 {[%emt 0:03:27]} 33. Qh8+ {[%emt 0:08:21]} Nd8 {[%emt 0:00:02]} 34. Rd1 {[%emt 0:00:16]} Rd7 {[%emt 0:00:24]} 35. exf5 {[%emt 0:08:49]} Qf7 {[%emt 0:01:06]} 36. Qe5 {[%emt 0:00:07]} Nc6 {[%emt 0:00:45]} 37. Qe4 {[%emt 0:00:20]} Kd8 {[%emt 0:02:34]} 38. Nxc7 {[%emt 0:04:35]} Rxd1 {[%emt 0:00:42]} 39. Qxc6 {[%emt 0:00:03]} Rd4 {[%emt 0:00:53]} 40. Ne6+ {[%emt 0:00:00]} Ke7 {[%emt 0:00:00]} 41. Nxd4 {[%emt 0:08:45]} cxd4 {[%emt 0:00:06]} 42. f6+ {[%emt 0:00:33]} 1-0

[Event "FIDE WCC 2018"]
[Site "Khanty-Mansiysk"]
[Date "2018.11.10"]
[Round "3.2"]
[White "Stefanova, Antoaneta"]
[Black "Muzychuk, Anna"]
[Result "1-0"]
[ECO "D00"]
[WhiteElo "2490"]
[BlackElo "2564"]
[Annotator "ChessBase"]
[PlyCount "95"]
[EventDate "2018.11.03"]
[EventType "k.o."]
[EventCountry "RUS"]
[SourceTitle "playchess.com"]
[Source "ChessBase"]
[SourceQuality "1"]
[TimeControl "40/5400+30:1800+30"]

1. d4 {[%emt 0:00:00]} d5 {[%emt 0:00:00]} 2. Bf4 {[%emt 0:00:00]} Nf6 {[%emt 0:00:35]} 3. e3 {[%emt 0:00:49]} e6 {[%emt 0:04:29]} 4. Nd2 {[%emt 0:02:46]} c5 {[%emt 0:02:26]} 5. c3 {[%emt 0:09:24]} Nc6 {[%emt 0:00:20]} 6. Ngf3 {[%emt 0:08:14]} Bd6 {[%emt 0:00:37]} 7. Bg3 {[%emt 0:00:51]} O-O {[%emt 0:00:34]} 8. Bd3 {[%emt 0:04:15]} b6 {[%emt 0:01:09]} 9. e4 {[%emt 0:08:42]} Be7 {[%emt 0:05:46]} 10. e5 {[%emt 0:05:44]} Nh5 {[%emt 0:01:26]} 11. a3 {[%emt 0:04:00]} a5 {[%emt 0:05:56]} 12. Qe2 {[%emt 0:01:20]} Bb7 {[%emt 0:01:15]} 13. h4 {[%emt 0:21:19]} Nxg3 {[%emt 0:22:41]} 14. fxg3 {[%emt 0:00:06]} h6 {[%emt 0:02:37]} 15. h5 {[%emt 0:12:27]} Bg5 {[%emt 0:05:40]} 16. O-O {[%emt 0:11:35]} Qe7 {[%emt 0:23:09]} 17. Nxg5 {[%emt 0:01:07]} Qxg5 {[%emt 0:01:16]} 18. Rf4 {[%emt 0:00:20]} cxd4 {[%emt 0:08:06]} 19. cxd4 {[%emt 0:00:45]} f5 {[%emt 0:01:13]} 20. exf6 {[%emt 0:02:57]} e5 {[%emt 0:01:04]} 21. dxe5 {[%emt 0:02:46]} Qxe5 {[%emt 0:00:09]} 22. fxg7 {[%emt 0:00:52]} Rxf4 {[%emt 0:02:54]} 23. gxf4 {[%emt 0:00:06]} Qxg7 {[%emt 0:00:36]} 24. Qe6+ {[%emt 0:00:56]} Kh8 {[%emt 0:00:04]} 25. Kh1 {[%emt 0:00:14]} Rf8 {[%emt 0:02:29]} 26. Rf1 {[%emt 0:00:35]} Rf6 {[%emt 0:00:39]} 27. Qe8+ {[%emt 0:00:27]} Rf8 {[%emt 0:00:16]} 28. Qe6 {[%emt 0:00:34]} Ne7 {[%emt 0:01:16]} 29. Qxb6 {[%emt 0:00:22]} Nf5 {[%emt 0:02:35]} 30. Bxf5 {[%emt 0:00:48]} Rxf5 {[%emt 0:00:06]} 31. Qg6 {[%emt 0:00:23]} d4 {[%emt 0:00:14]} 32. Kg1 {[%emt 0:00:36]} Rxh5 {[%emt 0:00:11]} 33. Qxg7+ {[%emt 0:00:15]} Kxg7 {[%emt 0:00:02]} 34. b4 {[%emt 0:00:26]} axb4 {[%emt 0:03:04]} 35. Rb1 {[%emt 0:00:04]} Ra5 {[%emt 0:00:16]} 36. Rxb4 {[%emt 0:00:28]} Bc6 {[%emt 0:00:15]} 37. Nc4 {[%emt 0:00:47]} Ra7 {[%emt 0:00:50]} 38. Kf2 {[%emt 0:00:20]} Bd5 {[%emt 0:02:06]} 39. Nb6 {[%emt 0:00:47]} Bc6 {[%emt 0:00:18]} 40. Nc4 {[%emt 0:00:00]} d3 {[%emt 0:00:00]} 41. g3 {[%emt 0:06:37]} d2 {[%emt 0:13:49]} 42. Ke2 {[%emt 0:04:29]} Bd5 {[%emt 0:01:21]} 43. a4 {[%emt 0:06:18]} Bxc4+ {[%emt 0:07:26]} 44. Rxc4 {[%emt 0:00:05]} Rd7 {[%emt 0:00:12]} 45. Kd1 {[%emt 0:00:06]} Rd3 {[%emt 0:02:05]} 46. g4 {[%emt 0:00:15]} Rd5 {[%emt 0:00:46]} 47. Rc3 {[%emt 0:09:45]} Rd4 {[%emt 0:06:33]} 48. Ra3 {[%emt 0:00:12]} 1-0

[Event "FIDE WCC 2018"]
[Site "Khanty-Mansiysk"]
[Date "2018.11.10"]
[Round "3.2"]
[White "Abdumalik, Zhansaya"]
[Black "Zawadzka, Jolanta"]
[Result "1-0"]
[ECO "C71"]
[WhiteElo "2473"]
[BlackElo "2407"]
[Annotator "ChessBase"]
[PlyCount "85"]
[EventDate "2018.11.03"]
[EventType "k.o."]
[EventCountry "RUS"]
[SourceTitle "playchess.com"]
[Source "ChessBase"]
[SourceQuality "1"]
[TimeControl "40/5400+30:1800+30"]

1. e4 {[%emt 0:00:00]} e5 {[%emt 0:00:00]} 2. Nf3 {[%emt 0:00:00]} Nc6 {[%emt 0:00:00]} 3. Bb5 {[%emt 0:00:00]} a6 {[%emt 0:00:00]} 4. Ba4 {[%emt 0:00:03]} d6 {[%emt 0:00:02]} 5. d4 {[%emt 0:05:09]} b5 {[%emt 0:01:30]} 6. Bb3 {[%emt 0:00:08]} Nxd4 {[%emt 0:00:19]} 7. Nxd4 {[%emt 0:01:42]} exd4 {[%emt 0:00:06]} 8. c3 {[%emt 0:02:32]} dxc3 {[%emt 0:02:11]} 9. O-O {[%emt 0:12:35]} Be7 {[%emt 0:09:44]} 10. Qh5 {[%emt 0:04:30]} g6 {[%emt 0:01:31]} 11. Qd5 {[%emt 0:00:06]} Be6 {[%emt 0:00:34]} 12. Qc6+ {[%emt 0:00:05]} Bd7 {[%emt 0:01:08]} 13. Qxc3 {[%emt 0:00:13]} Bf6 {[%emt 0:14:57]} 14. Qf3 {[%emt 0:06:15]} Be6 {[%emt 0:01:43]} 15. a4 {[%emt 0:07:26]} Rb8 {[%emt 0:06:02]} 16. axb5 {[%emt 0:11:41]} axb5 {[%emt 0:00:10]} 17. Rd1 {[%emt 0:00:36]} Bg7 {[%emt 0:17:27]} 18. Bxe6 {[%emt 0:16:21]} fxe6 {[%emt 0:00:06]} 19. Nc3 {[%emt 0:03:06]} b4 {[%emt 0:06:52]} 20. Ne2 {[%emt 0:00:31]} Qf6 {[%emt 0:01:51]} 21. Qb3 {[%emt 0:02:25]} Ne7 {[%emt 0:07:24]} 22. Nf4 {[%emt 0:00:27]} O-O {[%emt 0:00:50]} 23. Qxe6+ {[%emt 0:02:26]} Rf7 {[%emt 0:01:05]} 24. Ra7 {[%emt 0:02:59]} Rc8 {[%emt 0:02:11]} 25. Qc4 {[%emt 0:01:22]} c5 {[%emt 0:05:02]} 26. Rd7 {[%emt 0:01:03]} d5 {[%emt 0:01:43]} 27. exd5 {[%emt 0:01:05]} Qf5 {[%emt 0:00:38]} 28. Ra7 {[%emt 0:01:41]} Bd4 {[%emt 0:04:07]} 29. Re1 {[%emt 0:02:15]} Be5 {[%emt 0:04:21]} 30. Nd3 {[%emt 0:02:28]} Bd6 {[%emt 0:02:13]} 31. Re6 {[%emt 0:00:44]} Rd8 {[%emt 0:01:03]} 32. Ra6 {[%emt 0:00:50]} Qh5 {[%emt 0:01:48]} 33. h4 {[%emt 0:02:33]} Nf5 {[%emt 0:05:39]} 34. Bg5 {[%emt 0:01:39]} Nd4 {[%emt 0:00:07]} 35. Bxd8 {[%emt 0:04:44]} Qg4 {[%emt 0:01:31]} 36. Kf1 {[%emt 0:02:04]} Bg3 {[%emt 0:01:01]} 37. Ra1 {[%emt 0:01:50]} Qf5 {[%emt 0:00:51]} 38. Rf6 {[%emt 0:00:37]} Rxf6 {[%emt 0:00:17]} 39. Bxf6 {[%emt 0:00:05]} Qxf6 {[%emt 0:00:07]} 40. Qxc5 {[%emt 0:00:00]} Bd6 {[%emt 0:00:00]} 41. Qc8+ {[%emt 0:04:25]} Kg7 {[%emt 0:01:06]} 42. Ra7+ {[%emt 0:00:28]} Kh6 {[%emt 0:00:22]} 43. Qd7 {[%emt 0:00:52]} 1-0

[Event "FIDE WCC 2018"]
[Site "Khanty-Mansiysk"]
[Date "2018.11.10"]
[Round "3.2"]
[White "Lei, Tingjie"]
[Black "Galliamova, Alisa"]
[Result "1/2-1/2"]
[ECO "C60"]
[WhiteElo "2457"]
[BlackElo "2432"]
[Annotator "RC"]
[PlyCount "43"]
[EventDate "2018.11.03"]
[EventType "k.o."]
[EventCountry "RUS"]
[SourceTitle "playchess.com"]
[Source "ChessBase"]
[SourceQuality "1"]
[TimeControl "40/5400+30:1800+30"]

1. e4 {[%emt 0:00:00]} e5 {[%emt 0:00:00]} 2. Nf3 {[%emt 0:00:00]} Nc6 {[%emt 0:00:00]} 3. Bb5 {[%emt 0:00:13]} g6 {[%emt 0:00:00]} 4. c3 {[%emt 0:00:34]} a6 {[%emt 0:00:00]} 5. Ba4 {[%emt 0:00:06]} Bg7 {[%emt 0:00:04]} 6. d4 {[%emt 0:00:04]} exd4 {[%emt 0:00:06]} 7. cxd4 {[%emt 0:00:04]} b5 {[%emt 0:00:07]} 8. Bb3 {[%emt 0:00:08]} Nge7 {[%emt 0:00:53]} 9. d5 {[%emt 0:00:17]} Na5 {[%emt 0:00:33]} 10. Bd2 {[%emt 0:00:12]} Nxb3 {[%emt 0:00:23]} 11. Qxb3 {[%emt 0:00:05]} c5 {[%emt 0:01:20]} 12. dxc6 {[%emt 0:00:06]} O-O {[%emt 0:01:09]} 13. Bc3 {[%emt 0:12:30]} Bxc3+ {[%emt 0:00:25]} 14. Qxc3 {[%emt 0:01:28]} Nxc6 {[%emt 0:00:52]} 15. Nbd2 {[%emt 0:02:21]} Bb7 {[%emt 0:02:55]} 16. O-O {[%emt 0:02:54]} d6 {[%emt 0:07:41]} 17. a4 {[%emt 0:08:10]} bxa4 {[%emt 0:05:26]} 18. Nc4 {[%emt 0:03:14]} Rc8 {[%emt 0:33:27]} 19. Qe3 {[%emt 0:42:17]} Nb4 {[%emt 0:19:14]} 20. b3 {[%emt 0:21:08]} Qe7 {[%emt 0:19:15]} 21. Rxa4 {[%emt 0:01:40]} d5 {[%emt 0:01:07]} 22. exd5 {[%emt 0:02:35]} 1/2-1/2

[Event "FIDE WCC 2018"]
[Site "Khanty-Mansiysk"]
[Date "2018.11.11"]
[Round "3.4"]
[White "Lagno, Kateryna"]
[Black "Pogonina, Natalija"]
[Result "1/2-1/2"]
[ECO "C95"]
[WhiteElo "2556"]
[BlackElo "2465"]
[Annotator "ChessBase"]
[PlyCount "87"]
[EventDate "2018.11.03"]
[EventType "k.o."]
[EventCountry "RUS"]
[SourceTitle "playchess.com"]
[Source "ChessBase"]
[SourceQuality "1"]
[TimeControl "1500+10"]

1. e4 {[%emt 0:00:00]} e5 {[%emt 0:00:00]} 2. Nf3 {[%emt 0:00:00]} Nc6 {[%emt 0:00:00]} 3. Bb5 {[%emt 0:00:00]} a6 {[%emt 0:00:00]} 4. Ba4 {[%emt 0:00:00]} Nf6 {[%emt 0:00:00]} 5. O-O {[%emt 0:00:00]} Be7 {[%emt 0:00:00]} 6. Re1 {[%emt 0:00:02]} b5 {[%emt 0:00:01]} 7. Bb3 {[%emt 0:00:02]} d6 {[%emt 0:00:03]} 8. c3 {[%emt 0:00:01]} O-O {[%emt 0:00:02]} 9. h3 {[%emt 0:00:02]} Nb8 {[%emt 0:00:02]} 10. d4 {[%emt 0:00:04]} Nbd7 {[%emt 0:00:02]} 11. Nbd2 {[%emt 0:00:03]} c5 {[%emt 0:00:05]} 12. Bc2 {[%emt 0:00:11]} cxd4 {[%emt 0:00:21]} 13. cxd4 {[%emt 0:00:02]} Bb7 {[%emt 0:00:02]} 14. d5 {[%emt 0:01:44]} a5 {[%emt 0:00:07]} 15. Bd3 {[%emt 0:00:17]} b4 {[%emt 0:02:08]} 16. a3 {[%emt 0:01:12]} Nc5 {[%emt 0:00:15]} 17. Bf1 {[%emt 0:01:01]} Nfd7 {[%emt 0:01:16]} 18. Nc4 {[%emt 0:00:30]} Nb6 {[%emt 0:03:52]} 19. axb4 {[%emt 0:01:00]} axb4 {[%emt 0:00:03]} 20. Na5 {[%emt 0:02:18]} Qc7 {[%emt 0:03:29]} 21. Bd2 {[%emt 0:00:12]} f5 {[%emt 0:00:29]} 22. Bxb4 {[%emt 0:05:02]} fxe4 {[%emt 0:01:15]} 23. Nxb7 {[%emt 0:04:10]} Rxa1 {[%emt 0:00:06]} 24. Qxa1 {[%emt 0:00:01]} exf3 {[%emt 0:01:03]} 25. Nxc5 {[%emt 0:00:28]} dxc5 {[%emt 0:00:10]} 26. Bc3 {[%emt 0:00:17]} fxg2 {[%emt 0:02:34]} 27. Bxg2 {[%emt 0:00:02]} Bd6 {[%emt 0:01:17]} 28. Qd1 {[%emt 0:01:09]} Qf7 {[%emt 0:01:02]} 29. Rf1 {[%emt 0:01:04]} Nd7 {[%emt 0:00:40]} 30. Qg4 {[%emt 0:00:15]} Re8 {[%emt 0:01:49]} 31. Re1 {[%emt 0:01:12]} Nf6 {[%emt 0:01:04]} 32. Qf5 {[%emt 0:00:02]} g6 {[%emt 0:00:05]} 33. Qf3 {[%emt 0:00:01]} Qe7 {[%emt 0:00:50]} 34. Qe2 {[%emt 0:01:57]} Nh5 {[%emt 0:00:23]} 35. Bd2 {[%emt 0:00:01]} Qf6 {[%emt 0:00:17]} 36. Qf3 {[%emt 0:00:13]} Qg7 {[%emt 0:00:34]} 37. Qg4 {[%emt 0:00:26]} Qf7 {[%emt 0:00:37]} 38. Qf3 {[%emt 0:01:51]} Nf4 {[%emt 0:00:13]} 39. Bxf4 {[%emt 0:00:16]} exf4 {[%emt 0:00:02]} 40. Re4 {[%emt 0:00:58]} Re5 {[%emt 0:00:52]} 41. Rxe5 {[%emt 0:00:38]} Bxe5 {[%emt 0:00:02]} 42. Qe2 {[%emt 0:00:06]} Qf6 {[%emt 0:00:14]} 43. b3 {[%emt 0:00:22]} Kg7 {[%emt 0:00:10]} 44. Qe4 {[%emt 0:00:50]} 1/2-1/2